[Event "Condigne Dutch Open 2018"]
[Site "Dieren"]
[Date "2018.07.28"]
[Round "5"]
[White "Geurink, Jasper"]
[Black "Pruijssers, Roeland"]
[Result "1/2-1/2"]
[ECO "C00"]
[WhiteElo "2348"]
[BlackElo "2501"]
[Annotator "ChessBase"]
[PlyCount "78"]
[EventDate "2018.07.24"]
[EventType "swiss"]
[EventCountry "NED"]
[SourceTitle "playchess.com"]
[Source "ChessBase"]
[SourceQuality "1"]
[TimeControl "40/5400+30:1800+30"]

1. e4 {[%emt 0:00:00]} c5 {[%emt 0:00:06]} 2. Nf3 {[%emt 0:00:00]} e6 {[%emt 0:00:05]} 3. d3 {[%emt 0:00:00]} Nc6 {[%emt 0:00:41]} 4. g3 {[%emt 0:00:00]} Nf6 {[%emt 0:00:25]} 5. Bg2 {[%emt 0:00:08]} Be7 {[%emt 0:00:13]} 6. O-O {[%emt 0:00:08]} d5 {[%emt 0:00:12]} 7. Qe2 {[%emt 0:00:19]} O-O {[%emt 0:00:18]} 8. e5 {[%emt 0:00:13]} Nd7 {[%emt 0:00:07]} 9. c4 {[%emt 0:00:25]} Nb6 {[%emt 0:07:15]} 10. Bf4 {[%emt 0:08:38]} f5 {[%emt 0:04:48]} 11. exf6 {[%emt 0:12:47]} Bxf6 {[%emt 0:01:43]} 12. Nc3 {[%emt 0:01:29]} e5 {[%emt 0:11:31]} 13. Nxe5 {[%emt 0:13:57]} Nd4 {[%emt 0:02:50]} 14. Qh5 {[%emt 0:01:27]} g6 {[%emt 0:02:12]} 15. Nxg6 {[%emt 0:01:34]} Qe8 {[%emt 1:05:34]} 16. Nxd5 {[%emt 0:12:48]} hxg6 {[%emt 0:00:00]} 17. Nxf6+ {[%emt 0:01:49]} Rxf6 {[%emt 0:00:00]} 18. Qxc5 {[%emt 0:01:25]} Ne2+ {[%emt 0:00:00]} 19. Kh1 {[%emt 0:00:06]} Nxf4 {[%emt 0:00:00]} 20. gxf4 {[%emt 0:00:05]} Bf5 {[%emt 0:00:00]} 21. Rfe1 {[%emt 0:01:24]} Re6 {[%emt 0:00:00]} 22. Rxe6 {[%emt 0:04:54]} Qxe6 {[%emt 0:00:00]} 23. Qe3 {[%emt 0:01:33]} Qxe3 {[%emt 0:00:00]} 24. fxe3 {[%emt 0:00:06]} Bxd3 {[%emt 0:00:00]} 25. b3 {[%emt 0:00:59]} Re8 {[%emt 0:00:00]} 26. Bxb7 {[%emt 0:03:44]} Rxe3 {[%emt 0:00:00]} 27. c5 {[%emt 0:00:29]} Nd7 {[%emt 0:00:00]} 28. Rc1 {[%emt 0:00:09]} Nf6 {[%emt 0:00:00]} 29. Kg1 {[%emt 0:11:15]} Re2 {[%emt 0:00:00]} 30. Bf3 {[%emt 0:02:54]} Rd2 {[%emt 0:01:20]} 31. c6 {[%emt 0:04:17]} Bf5 {[%emt 0:00:17]} 32. Rc4 {[%emt 0:00:56]} Kf7 {[%emt 0:04:09]} 33. Ra4 {[%emt 0:02:26]} Ke6 {[%emt 0:00:02]} 34. Rxa7 {[%emt 0:01:01]} Rc2 {[%emt 0:00:18]} 35. Ra4 {[%emt 0:02:15]} Nd5 {[%emt 0:01:32]} 36. Rd4 {[%emt 0:00:31]} Ne7 {[%emt 0:01:12]} 37. a4 {[%emt 0:04:22]} Nxc6 {[%emt 0:00:20]} 38. Rc4 {[%emt 0:00:06]} Rxc4 {[%emt 0:01:32]} 39. bxc4 {[%emt 0:00:07]} Nb8 {[%emt 0:01:18]} 1/2-1/2

[Event "Condigne Dutch Open 2018"]
[Site "Dieren"]
[Date "2018.07.28"]
[Round "5"]
[White "Anand Nadar"]
[Black "Warmerdam, Max"]
[Result "1/2-1/2"]
[ECO "E18"]
[WhiteElo "2346"]
[BlackElo "2424"]
[Annotator "NA"]
[PlyCount "38"]
[EventDate "2018.07.24"]
[EventType "swiss"]
[EventCountry "NED"]
[SourceTitle "playchess.com"]
[Source "ChessBase"]
[SourceQuality "1"]
[TimeControl "40/5400+30:1800+30"]

1. d4 {[%emt 0:00:00]} Nf6 {[%emt 0:05:43]} 2. c4 {[%emt 0:00:00]} e6 {[%emt 0:00:06]} 3. Nf3 {[%emt 0:00:55]} b6 {[%emt 0:00:07]} 4. g3 {[%emt 0:00:23]} Bb7 {[%emt 0:00:06]} 5. Bg2 {[%emt 0:00:06]} Be7 {[%emt 0:00:10]} 6. O-O {[%emt 0:01:26]} O-O {[%emt 0:01:17]} 7. Nc3 {[%emt 0:00:35]} Ne4 {[%emt 0:00:11]} 8. Bd2 {[%emt 0:00:06]} Bf6 {[%emt 0:00:51]} 9. Ne5 {[%emt 0:02:35]} Nxc3 {[%emt 0:12:46]} 10. Bxc3 {[%emt 0:00:08]} Bxg2 {[%emt 0:00:08]} 11. Kxg2 {[%emt 0:00:06]} d5 {[%emt 0:17:27]} 12. Qd3 {[%emt 0:08:52]} Bxe5 {[%emt 0:27:26]} 13. dxe5 {[%emt 0:00:08]} dxc4 {[%emt 0:00:03]} 14. Qxc4 {[%emt 0:00:16]} Qd5+ {[%emt 0:00:22]} 15. Qxd5 {[%emt 0:00:07]} exd5 {[%emt 0:00:04]} 16. Rad1 {[%emt 0:01:46]} c6 {[%emt 0:00:06]} 17. e4 {[%emt 0:00:19]} dxe4 {[%emt 0:00:36]} 18. Rfe1 {[%emt 0:00:30]} Na6 {[%emt 0:13:13]} 19. Rxe4 {[%emt 0:01:04]} Rfd8 {[%emt 0:19:18]} 1/2-1/2

[Event "Condigne Dutch Open 2018"]
[Site "Dieren"]
[Date "2018.07.28"]
[Round "5"]
[White "Maris, Ivo"]
[Black "Van Helvoort, Rob"]
[Result "1-0"]
[ECO "A36"]
[WhiteElo "2342"]
[BlackElo "2119"]
[Annotator "NA"]
[PlyCount "151"]
[EventDate "2018.07.24"]
[EventType "swiss"]
[EventCountry "NED"]
[SourceTitle "playchess.com"]
[Source "ChessBase"]
[SourceQuality "1"]
[TimeControl "40/5400+30:1800+30"]

1. c4 {[%emt 0:00:00]} c5 {[%emt 0:00:16]} 2. g3 {[%emt 0:00:00]} g6 {[%emt 0:00:20]} 3. Bg2 {[%emt 0:00:00]} Bg7 {[%emt 0:00:03]} 4. Nc3 {[%emt 0:00:00]} Nc6 {[%emt 0:00:24]} 5. d3 {[%emt 0:00:22]} d6 {[%emt 0:00:09]} 6. e4 {[%emt 0:00:19]} Rb8 {[%emt 0:04:33]} 7. Nge2 {[%emt 0:03:00]} a6 {[%emt 0:03:26]} 8. a4 {[%emt 0:04:07]} h5 {[%emt 0:06:28]} 9. Be3 {[%emt 0:02:16]} Nd4 {[%emt 0:04:14]} 10. h3 {[%emt 0:02:00]} Qa5 {[%emt 0:12:07]} 11. O-O {[%emt 0:06:34]} Nxe2+ {[%emt 0:06:45]} 12. Qxe2 {[%emt 0:00:44]} Bxc3 {[%emt 0:00:07]} 13. bxc3 {[%emt 0:00:04]} Qxc3 {[%emt 0:00:08]} 14. f4 {[%emt 0:01:06]} Nh6 {[%emt 0:08:55]} 15. Rac1 {[%emt 0:01:34]} Qg7 {[%emt 0:03:43]} 16. Bd2 {[%emt 0:02:21]} O-O {[%emt 0:13:59]} 17. f5 {[%emt 0:01:40]} f6 {[%emt 0:03:13]} 18. Kh2 {[%emt 0:05:01]} Bd7 {[%emt 0:02:05]} 19. fxg6 {[%emt 0:09:33]} Qxg6 {[%emt 0:00:08]} 20. Rf4 {[%emt 0:00:21]} b5 {[%emt 0:05:05]} 21. cxb5 {[%emt 0:02:42]} axb5 {[%emt 0:00:02]} 22. a5 {[%emt 0:00:09]} b4 {[%emt 0:13:02]} 23. Bf3 {[%emt 0:01:40]} Rb5 {[%emt 0:01:19]} 24. Bxh5 {[%emt 0:00:23]} Qg7 {[%emt 0:00:28]} 25. Rh4 {[%emt 0:00:16]} Nf7 {[%emt 0:00:51]} 26. Bg4 {[%emt 0:00:30]} e6 {[%emt 0:00:36]} 27. d4 {[%emt 0:01:06]} Rxa5 {[%emt 0:00:15]} 28. d5 {[%emt 0:00:07]} Bb5 {[%emt 0:03:39]} 29. Qe3 {[%emt 0:04:05]} exd5 {[%emt 0:00:07]} 30. Be6 {[%emt 0:00:20]} Ra3 {[%emt 0:01:46]} 31. Qf2 {[%emt 0:01:06]} Be2 {[%emt 0:00:23]} 32. Bh6 {[%emt 0:00:26]} Qg6 {[%emt 0:02:55]} 33. Bf5 {[%emt 0:00:11]} Rf3 {[%emt 0:01:42]} 34. Qxf3 {[%emt 0:00:40]} Bxf3 {[%emt 0:00:10]} 35. Bxg6 {[%emt 0:00:05]} Nxh6 {[%emt 0:00:08]} 36. Rxh6 {[%emt 0:00:05]} Kg7 {[%emt 0:00:09]} 37. Rh5 {[%emt 0:02:59]} dxe4 {[%emt 0:01:29]} 38. Rd5 {[%emt 0:00:59]} Kxg6 {[%emt 0:00:31]} 39. Rxd6 {[%emt 0:00:02]} Rc8 {[%emt 0:01:22]} 40. Rb6 {[%emt 0:01:13]} Ra8 {[%emt 0:32:07]} 41. g4 {[%emt 0:30:07]} Ra5 {[%emt 0:00:00]} 42. Kg3 {[%emt 0:00:00]} Be2 {[%emt 0:00:00]} 43. Kf4 {[%emt 0:00:00]} Ra3 {[%emt 0:00:00]} 44. h4 {[%emt 0:00:00]} Rf3+ {[%emt 0:00:00]} 45. Kxe4 {[%emt 0:00:00]} Rh3 {[%emt 0:00:00]} 46. g5 {[%emt 0:00:00]} Bd3+ {[%emt 0:00:00]} 47. Kd5 {[%emt 0:00:00]} Rxh4 {[%emt 0:00:00]} 48. Rg1 {[%emt 0:00:00]} Rh5 {[%emt 0:00:00]} 49. Rxf6+ {[%emt 0:00:00]} Kg7 {[%emt 0:00:00]} 50. Rb6 {[%emt 0:00:00]} c4 {[%emt 0:00:00]} 51. Rxb4 {[%emt 0:00:00]} Rh8 {[%emt 0:00:00]} 52. Rb7+ {[%emt 0:00:00]} Kg6 {[%emt 0:00:06]} 53. Rb6+ {[%emt 0:00:00]} Kg7 {[%emt 0:00:35]} 54. Kd4 {[%emt 0:00:00]} Rh4+ {[%emt 0:01:50]} 55. Kc3 {[%emt 0:00:00]} Rh3 {[%emt 0:02:10]} 56. Kb4 {[%emt 0:00:00]} Be2 {[%emt 0:00:01]} 57. Re6 {[%emt 0:00:00]} Rb3+ {[%emt 0:01:53]} 58. Kc5 {[%emt 0:00:00]} Bd3 {[%emt 0:00:20]} 59. g6 {[%emt 0:00:00]} c3 {[%emt 0:00:31]} 60. Re7+ {[%emt 0:00:00]} Kg8 {[%emt 0:00:06]} 61. g7 {[%emt 0:00:00]} Rb8 {[%emt 0:00:13]} 62. Kd4 {[%emt 0:00:00]} Bh7 {[%emt 0:02:50]} 63. Kxc3 {[%emt 0:00:00]} Rd8 {[%emt 0:01:03]} 64. Kc4 {[%emt 0:00:00]} Bd3+ {[%emt 0:00:40]} 65. Kc5 {[%emt 0:00:00]} Bc2 {[%emt 0:00:12]} 66. Kc6 {[%emt 0:00:00]} Bb3 {[%emt 0:00:49]} 67. Kc7 {[%emt 0:00:00]} Ra8 {[%emt 0:00:12]} 68. Rd7 {[%emt 0:00:00]} Ra7+ {[%emt 0:01:00]} 69. Kd6 {[%emt 0:00:00]} Ra8 {[%emt 0:00:35]} 70. Ke7 {[%emt 0:00:00]} Bc2 {[%emt 0:00:19]} 71. Rd8+ {[%emt 0:00:00]} Rxd8 {[%emt 0:00:05]} 72. Kxd8 {[%emt 0:00:00]} Bb3 {[%emt 0:00:30]} 73. Ke7 {[%emt 0:00:00]} Bd5 {[%emt 0:00:12]} 74. Kf6 {[%emt 0:00:00]} Be4 {[%emt 0:00:10]} 75. Rd1 {[%emt 0:00:00]} Bh7 {[%emt 0:01:13]} 76. Rd8# {[%emt 0:00:00]} 1-0

[Event "Condigne Dutch Open 2018"]
[Site "Dieren"]
[Date "2018.07.28"]
[Round "5"]
[White "De Jong, Migchiel"]
[Black "Bruil, Rembrandt"]
[Result "1-0"]
[ECO "B38"]
[WhiteElo "2339"]
[BlackElo "2126"]
[Annotator "NA"]
[PlyCount "81"]
[EventDate "2018.07.24"]
[EventType "swiss"]
[EventCountry "NED"]
[SourceTitle "playchess.com"]
[Source "ChessBase"]
[SourceQuality "1"]
[TimeControl "40/5400+30:1800+30"]

1. e4 {[%emt 0:00:00]} c5 {[%emt 0:00:05]} 2. Nf3 {[%emt 0:00:00]} Nc6 {[%emt 0:00:02]} 3. d4 {[%emt 0:00:03]} cxd4 {[%emt 0:00:04]} 4. Nxd4 {[%emt 0:00:06]} g6 {[%emt 0:00:03]} 5. c4 {[%emt 0:00:24]} Nf6 {[%emt 0:00:05]} 6. Nc3 {[%emt 0:00:15]} Bg7 {[%emt 0:00:35]} 7. Be3 {[%emt 0:00:34]} d6 {[%emt 0:00:27]} 8. Be2 {[%emt 0:00:28]} O-O {[%emt 0:00:13]} 9. O-O {[%emt 0:00:19]} Nxd4 {[%emt 0:02:37]} 10. Bxd4 {[%emt 0:00:08]} Bd7 {[%emt 0:01:30]} 11. Qc2 {[%emt 0:06:18]} a6 {[%emt 0:02:50]} 12. a4 {[%emt 0:01:18]} Qc7 {[%emt 0:10:51]} 13. a5 {[%emt 0:04:46]} Be6 {[%emt 0:00:26]} 14. Bb6 {[%emt 0:05:53]} Qc6 {[%emt 0:01:34]} 15. b3 {[%emt 0:03:25]} Nd7 {[%emt 0:05:33]} 16. Be3 {[%emt 0:00:17]} Rac8 {[%emt 0:00:43]} 17. Rfd1 {[%emt 0:02:42]} Qc7 {[%emt 0:06:12]} 18. Ra2 {[%emt 0:02:11]} f5 {[%emt 0:17:39]} 19. exf5 {[%emt 0:03:34]} Bxf5 {[%emt 0:00:22]} 20. Bd3 {[%emt 0:02:05]} Bxd3 {[%emt 0:12:17]} 21. Qxd3 {[%emt 0:00:25]} Nc5 {[%emt 0:00:16]} 22. Qc2 {[%emt 0:01:07]} e6 {[%emt 0:03:59]} 23. Ne4 {[%emt 0:01:17]} Rcd8 {[%emt 0:04:43]} 24. b4 {[%emt 0:03:27]} Nxe4 {[%emt 0:00:43]} 25. Qxe4 {[%emt 0:00:06]} Qf7 {[%emt 0:01:38]} 26. Rad2 {[%emt 0:05:10]} Qe7 {[%emt 0:11:05]} 27. c5 {[%emt 0:06:26]} dxc5 {[%emt 0:02:27]} 28. Bxc5 {[%emt 0:00:08]} Rxd2 {[%emt 0:00:08]} 29. Rxd2 {[%emt 0:00:08]} Qf6 {[%emt 0:00:31]} 30. g3 {[%emt 0:00:59]} Rf7 {[%emt 0:05:38]} 31. Rd6 {[%emt 0:00:24]} Bf8 {[%emt 0:03:10]} 32. Rxe6 {[%emt 0:01:53]} Qa1+ {[%emt 0:00:03]} 33. Kg2 {[%emt 0:00:50]} Bxc5 {[%emt 0:02:56]} 34. bxc5 {[%emt 0:00:10]} Qxa5 {[%emt 0:00:25]} 35. Re8+ {[%emt 0:00:37]} Kg7 {[%emt 0:00:06]} 36. Qd4+ {[%emt 0:01:44]} Kh6 {[%emt 0:00:17]} 37. Rg8 {[%emt 0:01:36]} Kg5 {[%emt 0:02:33]} 38. h4+ {[%emt 0:00:33]} Kh5 {[%emt 0:01:34]} 39. Qd1+ {[%emt 0:00:16]} Kh6 {[%emt 0:00:02]} 40. Qc1+ {[%emt 0:00:12]} Kh5 {[%emt 0:30:06]} 41. Qg5# {[%emt 0:30:13]} 1-0

[Event "Condigne Dutch Open 2018"]
[Site "Dieren"]
[Date "2018.07.28"]
[Round "5"]
[White "Saravanan, V.."]
[Black "Melde, Benjamin"]
[Result "1-0"]
[ECO "E92"]
[WhiteElo "2326"]
[BlackElo "2108"]
[Annotator "NA"]
[PlyCount "109"]
[EventDate "2018.07.24"]
[EventType "swiss"]
[EventCountry "NED"]
[SourceTitle "playchess.com"]
[Source "ChessBase"]
[SourceQuality "1"]
[TimeControl "40/5400+30:1800+30"]

1. d4 {[%emt 0:00:00]} Nf6 {[%emt 0:00:27]} 2. c4 {[%emt 0:00:00]} g6 {[%emt 0:00:41]} 3. Nc3 {[%emt 0:00:00]} Bg7 {[%emt 0:00:16]} 4. e4 {[%emt 0:00:00]} O-O {[%emt 0:00:19]} 5. Nf3 {[%emt 0:00:00]} d6 {[%emt 0:00:07]} 6. Be2 {[%emt 0:00:01]} e5 {[%emt 0:00:05]} 7. Be3 {[%emt 0:00:05]} c6 {[%emt 0:00:51]} 8. d5 {[%emt 0:01:07]} Ng4 {[%emt 0:00:12]} 9. Bg5 {[%emt 0:00:09]} f6 {[%emt 0:00:06]} 10. Bh4 {[%emt 0:00:07]} h5 {[%emt 0:00:05]} 11. Nd2 {[%emt 0:07:25]} Nh6 {[%emt 0:00:11]} 12. f3 {[%emt 0:04:10]} c5 {[%emt 0:01:01]} 13. a3 {[%emt 0:07:17]} Na6 {[%emt 0:03:35]} 14. Rb1 {[%emt 0:00:06]} b6 {[%emt 0:01:27]} 15. b4 {[%emt 0:02:55]} Nf7 {[%emt 0:05:26]} 16. Bd3 {[%emt 0:09:12]} Bh6 {[%emt 0:02:31]} 17. Qe2 {[%emt 0:01:52]} Bd7 {[%emt 0:09:03]} 18. Bc2 {[%emt 0:15:26]} Qe8 {[%emt 0:23:52]} 19. Bxf6 {[%emt 0:08:12]} Ng5 {[%emt 0:00:53]} 20. Bxg5 {[%emt 0:00:11]} Bxg5 {[%emt 0:00:07]} 21. Nb5 {[%emt 0:08:53]} Qe7 {[%emt 0:08:46]} 22. Ba4 {[%emt 0:02:26]} Rad8 {[%emt 0:03:25]} 23. Nc3 {[%emt 0:02:44]} Bc8 {[%emt 0:00:25]} 24. Bb5 {[%emt 0:07:29]} Bh6 {[%emt 0:10:35]} 25. Kd1 {[%emt 0:05:39]} Qg5 {[%emt 0:07:43]} 26. Kc2 {[%emt 0:00:13]} Nc7 {[%emt 0:13:57]} 27. bxc5 {[%emt 0:01:30]} bxc5 {[%emt 0:00:06]} 28. Nb3 {[%emt 0:00:28]} Nxb5 {[%emt 0:01:05]} 29. Nxb5 {[%emt 0:00:22]} Rf7 {[%emt 0:02:54]} 30. Na5 {[%emt 0:00:19]} a6 {[%emt 0:02:43]} 31. Nc3 {[%emt 0:00:09]} Qe3 {[%emt 0:00:39]} 32. Qxe3 {[%emt 0:00:48]} Bxe3 {[%emt 0:00:02]} 33. Rb8 {[%emt 0:02:49]} g5 {[%emt 0:01:05]} 34. Na4 {[%emt 0:02:49]} Rdf8 {[%emt 0:00:25]} 35. Nb6 {[%emt 0:03:17]} Bd7 {[%emt 0:00:09]} 36. Nxd7 {[%emt 0:00:26]} Rxd7 {[%emt 0:00:09]} 37. Rxf8+ {[%emt 0:00:15]} Kxf8 {[%emt 0:00:01]} 38. Rb1 {[%emt 0:00:11]} g4 {[%emt 0:00:54]} 39. fxg4 {[%emt 0:01:52]} hxg4 {[%emt 0:00:36]} 40. Rb7 {[%emt 0:00:26]} Rxb7 {[%emt 0:32:03]} 41. Nxb7 {[%emt 0:30:06]} Ke7 {[%emt 0:00:05]} 42. Na5 {[%emt 0:00:29]} Kf6 {[%emt 0:00:00]} 43. Kd3 {[%emt 0:00:00]} Bh6 {[%emt 0:00:00]} 44. Nc6 {[%emt 0:00:00]} Bc1 {[%emt 0:00:00]} 45. a4 {[%emt 0:00:00]} Ba3 {[%emt 0:00:00]} 46. h3 {[%emt 0:00:00]} Kg5 {[%emt 0:00:00]} 47. hxg4 {[%emt 0:00:00]} Kf6 {[%emt 0:00:00]} 48. g5+ {[%emt 0:00:00]} Kf7 {[%emt 0:00:00]} 49. Ke2 {[%emt 0:00:00]} Bb2 {[%emt 0:00:00]} 50. Kf3 {[%emt 0:00:00]} Bc1 {[%emt 0:00:00]} 51. Kg4 {[%emt 0:00:00]} Bd2 {[%emt 0:00:00]} 52. Kf5 {[%emt 0:00:00]} Be1 {[%emt 0:00:00]} 53. Nb8 {[%emt 0:00:00]} a5 {[%emt 0:00:00]} 54. Nc6 {[%emt 0:00:00]} Bd2 {[%emt 0:00:00]} 55. g6+ {[%emt 0:00:00]} 1-0

[Event "Condigne Dutch Open 2018"]
[Site "Dieren"]
[Date "2018.07.28"]
[Round "5"]
[White "Van Osch, Mees"]
[Black "Krysa, Leandro"]
[Result "0-1"]
[ECO "C48"]
[WhiteElo "2324"]
[BlackElo "2533"]
[Annotator "ChessBase"]
[PlyCount "144"]
[EventDate "2018.07.24"]
[EventType "swiss"]
[EventCountry "NED"]
[SourceTitle "playchess.com"]
[Source "ChessBase"]
[SourceQuality "1"]
[TimeControl "40/5400+30:1800+30"]

1. e4 {[%emt 0:00:00]} e5 {[%emt 0:00:08]} 2. Nf3 {[%emt 0:00:00]} Nc6 {[%emt 0:00:08]} 3. Nc3 {[%emt 0:00:00]} Nf6 {[%emt 0:00:13]} 4. Bb5 {[%emt 0:00:00]} Bc5 {[%emt 0:01:01]} 5. O-O {[%emt 1:32:30]} O-O {[%emt 0:02:11]} 6. Nxe5 {[%emt 0:00:00]} Nxe5 {[%emt 0:00:28]} 7. d4 {[%emt 0:00:00]} Bd6 {[%emt 0:00:18]} 8. f4 {[%emt 0:00:00]} Neg4 {[%emt 0:01:51]} 9. h3 {[%emt 0:00:00]} Bb4 {[%emt 0:14:49]} 10. hxg4 {[%emt 0:00:00]} Bxc3 {[%emt 0:00:52]} 11. bxc3 {[%emt 0:00:00]} Nxe4 {[%emt 0:00:03]} 12. Bd3 {[%emt 0:00:00]} d5 {[%emt 0:02:42]} 13. Bxe4 {[%emt 0:00:00]} dxe4 {[%emt 0:00:06]} 14. f5 {[%emt 0:00:00]} Qh4 {[%emt 0:07:35]} 15. Qe2 {[%emt 0:00:00]} Re8 {[%emt 0:02:57]} 16. Be3 {[%emt 0:00:00]} Bd7 {[%emt 0:09:59]} 17. Bf2 {[%emt 0:00:00]} Qg5 {[%emt 0:04:37]} 18. Be3 {[%emt 0:00:00]} Bb5 {[%emt 0:06:48]} 19. Bxg5 {[%emt 0:00:00]} Bxe2 {[%emt 0:00:43]} 20. Rf4 {[%emt 0:00:00]} Bc4 {[%emt 0:06:41]} 21. Bh4 {[%emt 0:00:00]} h6 {[%emt 0:03:36]} 22. a3 {[%emt 0:00:00]} f6 {[%emt 0:04:35]} 23. Bg3 {[%emt 0:00:00]} Re7 {[%emt 0:05:47]} 24. Rb1 {[%emt 0:00:00]} b6 {[%emt 0:04:51]} 25. Re1 {[%emt 0:00:00]} e3 {[%emt 0:00:24]} 26. Rf3 {[%emt 0:00:00]} e2 {[%emt 0:01:16]} 27. Kf2 {[%emt 0:00:00]} Rae8 {[%emt 0:09:58]} 28. Bf4 {[%emt 0:00:24]} Kf7 {[%emt 0:00:28]} 29. g3 {[%emt 0:00:29]} Rd8 {[%emt 0:03:14]} 30. Re3 {[%emt 0:00:27]} Rdd7 {[%emt 0:02:10]} 31. Rb1 {[%emt 0:00:51]} Rxe3 {[%emt 0:01:51]} 32. Kxe3 {[%emt 0:00:16]} Re7+ {[%emt 0:00:25]} 33. Kf2 {[%emt 0:00:19]} Ke8 {[%emt 0:00:13]} 34. Ke1 {[%emt 0:01:42]} Kd7 {[%emt 0:00:30]} 35. Rb4 {[%emt 0:00:04]} Bd5 {[%emt 0:00:39]} 36. c4 {[%emt 0:01:48]} a5 {[%emt 0:01:46]} 37. Rb3 {[%emt 0:04:07]} Bxc4 {[%emt 0:00:03]} 38. Re3 {[%emt 0:00:06]} Rf7 {[%emt 0:00:53]} 39. d5 {[%emt 0:01:15]} Kd8 {[%emt 0:02:30]} 40. Re4 {[%emt 0:02:39]} b5 {[%emt 0:30:18]} 41. a4 {[%emt 0:06:53]} Bxd5 {[%emt 0:00:00]} 42. Rd4 {[%emt 0:14:46]} Rd7 {[%emt 0:00:00]} 43. axb5 {[%emt 0:00:14]} Bf3 {[%emt 0:00:00]} 44. Be3 {[%emt 0:00:12]} a4 {[%emt 0:00:00]} 45. Rxd7+ {[%emt 0:00:09]} Kxd7 {[%emt 0:00:00]} 46. Bc5 {[%emt 0:00:02]} Ke8 {[%emt 0:00:00]} 47. c4 {[%emt 0:00:17]} Bxg4 {[%emt 0:00:00]} 48. Bb4 {[%emt 0:00:09]} h5 {[%emt 0:00:00]} 49. c5 {[%emt 0:01:51]} Kd7 {[%emt 0:00:45]} 50. c6+ {[%emt 0:00:39]} Ke8 {[%emt 0:00:58]} 51. Kf2 {[%emt 0:00:20]} Bxf5 {[%emt 0:00:09]} 52. Kxe2 {[%emt 0:00:03]} g5 {[%emt 0:00:15]} 53. Kd2 {[%emt 0:10:41]} h4 {[%emt 0:00:28]} 54. gxh4 {[%emt 0:00:03]} gxh4 {[%emt 0:00:04]} 55. Ba5 {[%emt 0:00:13]} Kd8 {[%emt 0:01:39]} 56. b6 {[%emt 0:02:42]} cxb6 {[%emt 0:00:12]} 57. Bxb6+ {[%emt 0:00:03]} Ke7 {[%emt 0:01:20]} 58. Bf2 {[%emt 0:00:33]} h3 {[%emt 0:00:16]} 59. Bg3 {[%emt 0:00:02]} Bc8 {[%emt 0:00:51]} 60. Kc3 {[%emt 0:00:25]} Ke6 {[%emt 0:00:18]} 61. Kb4 {[%emt 0:00:27]} Kf5 {[%emt 0:00:35]} 62. Kxa4 {[%emt 0:00:06]} Kg4 {[%emt 0:00:45]} 63. Bh2 {[%emt 0:00:03]} Kf3 {[%emt 0:00:47]} 64. Kb5 {[%emt 0:01:31]} Kg2 {[%emt 0:00:04]} 65. Bd6 {[%emt 0:00:11]} h2 {[%emt 0:00:07]} 66. Bxh2 {[%emt 0:00:07]} Kxh2 {[%emt 0:00:04]} 67. Kb6 {[%emt 0:00:05]} Bg4 {[%emt 0:02:02]} 68. c7 {[%emt 0:00:07]} Kg3 {[%emt 0:00:19]} 69. Kc5 {[%emt 0:00:07]} Kf4 {[%emt 0:00:29]} 70. Kd4 {[%emt 0:00:04]} Bc8 {[%emt 0:00:22]} 71. Kd3 {[%emt 0:00:11]} Ke5 {[%emt 0:00:11]} 72. Ke3 {[%emt 0:00:07]} Kd6 {[%emt 0:00:05]} 0-1

[Event "Condigne Dutch Open 2018"]
[Site "Dieren"]
[Date "2018.07.28"]
[Round "5"]
[White "De Boer, Eelke"]
[Black "Anurag, Mhamal"]
[Result "*"]
[ECO "C84"]
[WhiteElo "2317"]
[BlackElo "2484"]
[Annotator "ChessBase"]
[PlyCount "49"]
[EventDate "2018.07.24"]
[EventType "swiss"]
[EventCountry "NED"]
[SourceTitle "playchess.com"]
[Source "ChessBase"]
[SourceQuality "1"]
[TimeControl "40/5400+30:1800+30"]

1. e4 {[%emt 0:00:00]} e5 {[%emt 0:00:26]} 2. Nf3 {[%emt 0:00:00]} Nc6 {[%emt 0:00:05]} 3. Bb5 {[%emt 0:00:00]} a6 {[%emt 0:01:00]} 4. Ba4 {[%emt 0:00:00]} Nf6 {[%emt 0:00:04]} 5. O-O {[%emt 0:00:00]} Be7 {[%emt 0:00:04]} 6. d3 {[%emt 0:00:05]} b5 {[%emt 1:31:51]} 7. Bb3 {[%emt 0:00:05]} d6 {[%emt 0:00:03]} 8. a3 {[%emt 0:00:09]} Na5 {[%emt 1:31:37]} 9. Ba2 {[%emt 0:00:08]} c5 {[%emt 0:00:20]} 10. Nc3 {[%emt 0:00:15]} Be6 {[%emt 0:00:17]} 11. Bg5 {[%emt 0:00:15]} Nc6 {[%emt 0:04:16]} 12. Bxf6 {[%emt 1:35:03]} Bxf6 {[%emt 1:28:30]} 13. Nd5 {[%emt 1:35:02]} O-O {[%emt 0:00:49]} 14. c3 {[%emt 0:02:29]} g6 {[%emt 0:05:11]} 15. Qd2 {[%emt 0:12:20]} Rc8 {[%emt 0:22:45]} 16. a4 {[%emt 0:08:20]} Rb8 {[%emt 0:06:36]} 17. axb5 {[%emt 0:04:49]} axb5 {[%emt 0:00:05]} 18. Bb3 {[%emt 0:02:17]} Bxd5 {[%emt 0:02:50]} 19. Bxd5 {[%emt 0:02:24]} Ne7 {[%emt 0:00:08]} 20. Bb3 {[%emt 0:02:23]} Ra8 {[%emt 0:12:43]} 21. Qh6 {[%emt 0:26:08]} d5 {[%emt 0:07:26]} 22. Ng5 {[%emt 0:05:44]} Bxg5 {[%emt 0:00:04]} 23. Qxg5 {[%emt 0:00:04]} Rxa1 {[%emt 0:35:17]} 24. Rd1 {[%emt 0:33:27] Rb1Rxb1 [%clk 0:33:20]} Qd6 {[%emt 0:01:04]} 25. Rxa1 {[%emt 0:00:00]} *